bitfinex/quotes_ETHUSD_20250916
["timestamp","ask_amount","ask_price","bid_price","bid_amount"]
[1757996824525,0.082,4520.8,4520.7,5.87789289]
[1757996824725,0.082,4520.8,4520.7,9.63989289]
[1757996825155,0.082,4520.8,4520.7,8.1509468]
[1757996825637,0.082,4520.8,4520.7,22.6509468]
[1757996825943,0.082,4520.8,4520.7,23.5924468]
[1757996826562,0.082,4520.8,4520.7,18.8889468]
[1757996826869,0.082,4520.8,4520.7,22.6509468]
[1757996827073,0.082,4520.8,4520.7,23.8876468]
[1757996827247,0.082,4520.8,4520.7,23.5924468]
[1757996827442,0.082,4520.8,4520.7,23.8876468]
[1757996828162,0.082,4520.8,4520.7,23.8866468]
[1757996828334,0.082,4520.8,4520.7,26.02579863]
[1757996828730,0.082,4520.8,4520.7,6.52809863]
[1757996828948,0.082,4520.8,4520.7,8.1499468]
[1757996829244,0.082,4520.8,4520.7,22.6499468]
[1757996829557,0.082,4520.8,4520.7,23.8866468]
[1757996829734,0.082,4520.8,4520.7,20.1256468]
[1757996830068,0.082,4520.8,4520.7,23.8866468]
[1757996830570,0.082,4520.8,4520.7,22.6499468]
[1757996830935,0.082,4520.8,4520.7,18.8889468]
[1757996831140,0.082,4520.8,4520.7,8.1489468]
[1757996831470,0.4475,4520.8,4520.7,8.1489468]
[1757996831631,0.4475,4520.8,4520.7,4.3889468]
[1757996831834,0.4475,4520.8,4520.7,8.1489468]
[1757996832989,0.4475,4520.8,4520.7,4.3889468]
[1757996833295,0.4475,4520.8,4520.7,8.1489468]
[1757996833654,0.4475,4520.8,4520.7,0.4759]
[1757996833870,0.4475,4520.8,4520.7,3.76]
[1757996836996,0.4475,4520.8,4520.7,3.759]
[1757996838083,0.082,4520.8,4520.7,3.759]
[1757996840062,0.082,4520.8,4520.3,0.001]
[1757996840393,0.082,4520.8,4520.4,3.758]
[1757996840694,0.4475,4520.8,4520.4,5.97019114]
[1757996840883,0.082,4520.8,4520.4,3.758]
[1757996841194,0.082,4520.8,4520.4,4.6533]
[1757996841396,0.082,4520.8,4520.5,2.21214386]
[1757996841603,0.082,4520.8,4520.6,3.758]
[1757996844395,0.3655,4520.7,4520.3,0.1114]
[1757996844698,0.3655,4520.6,4520.4,3.758]
[1757996845201,0.3655,4520.5,4520.3,0.1114]
[1757996845502,0.3655,4520.5,4520.4,3.757]
[1757996847015,2.57764467,4520.5,4520.3,0.1114]
[1757996847166,2.57764467,4520.5,4520.4,3.757]
[1757996847367,2.21219361,4520.4,4520.3,3.8684]
[1757996847567,2.21219361,4520.4,4520.3,3.758]
[1757996847568,0.3655,4520.4,4520.3,3.758]
[1757996848674,2.57769361,4520.4,4520.3,3.758]
[1757996849477,2.57769361,4520.4,4520.3,0.001]
[1757996849677,2.68809361,4520.4,4520.3,0.001]
[1757996851602,0.1104,4520.4,4520.3,0.001]
[1757996852266,2.40443627,4520.8,4520.3,1.2059]
[1757996852616,2.40439908,4520.8,4520.4,0.8953]
[1757996852806,0.1924,4520.8,4520.4,0.8953]
[1757996853110,2.40442089,4520.8,4520.4,0.8953]
[1757996853305,2.21205619,4520.7,4520.4,0.8953]
[1757996853471,2.2121059,4520.6,4520.3,3.757]
[1757996853672,2.21214467,4520.5,4520.3,3.757]
[1757996854707,2.21209573,4520.6,4520.3,3.757]
[1757996855005,2.57759573,4520.6,4520.3,3.757]
[1757996855365,2.21209573,4520.6,4520.3,3.757]
[1757996855913,0.5579,4520.8,4520.3,3.757]
[1757996855914,2.76991404,4520.8,4520.3,3.757]
[1757996856280,2.40441404,4520.8,4520.3,3.757]
[1757996856605,0.1924,4520.8,4520.4,0.8953]
[1757996856791,0.1924,4520.8,4520.5,0.8953]
[1757996856991,0.1924,4520.8,4520.3,3.756]
[1757996856992,0.1924,4520.8,4520.7,0.3096]
[1757996857502,0.1924,4520.8,4520.7,1.2049]
[1757996860176,0.082,4520.8,4520.7,1.2049]
[1757996863016,0.082,4520.8,4520.7,3.4169468]
[1757996863597,0.082,4520.8,4520.7,1.2049]
[1757996863806,0.082,4520.8,4520.7,3.4169468]
[1757996863984,0.082,4520.8,4520.7,3.5273468]
[1757996864189,0.082,4520.8,4520.7,4.47679334]
[1757996864406,0.082,4520.8,4520.7,4.5654583]
[1757996868219,0.082,4520.8,4520.7,4.47679334]
[1757996885614,0.082,4520.8,4520.7,18.97679334]
[1757996889571,0.082,4520.8,4520.7,18.54789334]
[1757996889776,0.082,4520.8,4520.7,22.29489334]
[1757996890003,0.082,4520.8,4520.7,6.0694468]
[1757996890187,0.082,4520.8,4520.7,0.1104]
[1757996890392,0.4475,4520.8,4520.7,3.8574]
[1757996890569,0.082,4520.8,4520.7,3.8574]
[1757996890769,0.082,4520.8,4520.7,6.0694468]
[1757996893174,0.082,4520.8,4520.7,7.2546468]
[1757996894112,0.082,4520.8,4520.7,7.1442468]
[1757996894315,0.082,4520.8,4520.7,8.36038574]
[1757996895417,0.082,4520.8,4520.7,22.86038574]
[1757996897616,0.082,4520.8,4520.7,22.94903851]
[1757996901125,0.082,4520.8,4520.7,26.74103851]
[1757996903339,0.082,4520.8,4520.7,26.73703851]
[1757996907151,0.082,4520.8,4520.7,21.01683851]
[1757996907306,0.082,4520.8,4520.7,10.25983851]
[1757996907508,0.082,4520.8,4520.7,10.25883851]
[1757996907702,0.082,4520.8,4520.7,10.72023851]
[1757996907908,0.082,4520.8,4520.7,11.47793851]
[1757996908152,0.082,4520.8,4520.7,7.44883851]
[1757996908355,0.082,4520.8,4520.7,11.19083851]
[1757996910058,0.082,4520.8,4520.7,11.47793851]
[1757996911383,0.082,4520.8,4520.7,25.97793851]
[1757996913378,0.082,4520.8,4520.7,6.15209957]
[1757996914122,0.082,4520.8,4520.7,6.0634468]
[1757996914786,0.4475,4520.8,4520.7,2.3224468]
[1757996914978,0.4475,4520.8,4520.7,6.0634468]
[1757996915312,0.082,4520.8,4520.7,6.8211468]
[1757996915480,0.082,4520.8,4520.7,7.2825468]
[1757996915809,0.082,4520.8,4520.7,6.5248468]
[1757996916585,0.082,4520.8,4520.7,6.5238468]
[1757996917568,0.082,4520.8,4520.7,6.9944468]
[1757996917771,0.082,4520.8,4520.7,7.2815468]
[1757996918006,0.082,4520.8,4520.7,8.40101549]
[1757996922206,0.082,4520.8,4520.7,22.90101549]
[1757996924679,0.082,4520.8,4520.7,22.98967141]
[1757996925218,0.082,4520.8,4520.7,20.65010272]
[1757996925426,0.082,4520.8,4520.7,16.91110272]
[1757996925626,0.4475,4520.8,4520.7,2.3224468]
[1757996925825,0.082,4520.8,4520.7,6.0614468]
[1757996927424,0.082,4520.8,4520.7,6.3485468]
[1757996927758,0.082,4520.8,4520.7,8.35285443]
[1757996928144,0.082,4520.8,4520.7,8.44150976]
[1757996928659,0.082,4520.8,4520.7,4.70250976]
[1757996928826,0.082,4520.8,4520.7,8.44050976]
[1757996929756,0.082,4520.8,4520.7,22.94050976]
[1757996930943,0.082,4520.8,4520.7,18.91540976]
[1757996931129,0.082,4520.8,4520.7,21.11970213]
[1757996931457,0.082,4520.8,4520.7,20.64810213]
[1757996931755,0.082,4520.8,4520.7,21.13530213]
[1757996931929,0.082,4520.8,4520.7,21.91830213]
[1757996933853,0.082,4520.8,4520.7,20.64810213]
[1757996934242,0.082,4520.8,4520.7,6.14810213]
[1757996934451,0.082,4520.8,4520.7,7.10830213]
[1757996934653,0.082,4520.8,4520.7,7.41830213]
[1757996935863,0.082,4520.8,4520.7,7.10830213]
[1757996936070,0.082,4520.8,4520.7,7.41710213]
[1757996936647,0.082,4520.8,4520.7,7.10830213]
[1757996937258,0.082,4520.8,4520.7,6.14810213]
[1757996937781,0.082,4520.8,4520.7,6.03670213]
[1757996941880,0.082,4520.8,4520.7,6.99330213]
[1757996943453,0.082,4520.8,4520.7,7.30210213]
[1757996943875,0.082,4520.8,4520.7,8.423626]
[1757996947564,0.082,4520.8,4520.7,11.423626]
[1757996947762,0.082,4520.8,4520.7,11.534026]
[1757996949085,0.082,4520.8,4520.7,11.532026]
[1757996949578,0.082,4520.8,4520.7,7.798026]
[1757996949782,0.082,4520.8,4520.7,11.532026]
[1757996952956,0.082,4520.8,4520.7,7.798026]
[1757996953290,0.082,4520.8,4520.7,11.532026]
[1757996954687,1e-08,4520.8,4520.7,11.532026]
[1757996958789,1e-08,4520.8,4520.7,11.530026]
[1757996959155,1e-08,4520.8,4520.7,11.064926]
[1757996959354,1e-08,4520.8,4520.7,7.024126]
[1757996959582,1e-08,4520.8,4520.7,10.756126]
[1757996959790,1e-08,4520.8,4520.7,11.530026]
[1757996963863,1e-08,4520.8,4520.7,12.322026]
[1757996972598,1e-08,4520.8,4520.7,26.822026]
[1757996975025,1e-08,4520.8,4520.7,26.819026]
[1757996978696,1e-08,4520.8,4520.7,25.553626]
[1757996979335,1e-08,4520.8,4520.7,30.974926]
[1757996979538,1e-08,4520.8,4520.7,30.973926]
[1757996980934,1e-08,4520.8,4520.7,28.950626]
[1757996981524,1e-08,4520.8,4520.7,29.891026]
[1757996982244,1e-08,4520.8,4520.7,30.181926]
[1757996982620,1e-08,4520.8,4520.7,26.453926]
[1757996982825,1e-08,4520.8,4520.7,30.181926]
[1757996988965,1e-08,4520.8,4520.7,10.612226]
[1757996989174,1e-08,4520.8,4520.7,14.339226]
[1757996989332,1e-08,4520.8,4520.7,15.279626]
[1757996989538,1e-08,4520.8,4520.7,29.779626]
[1757996989959,1e-08,4520.8,4520.7,28.839226]
[1757996991143,1e-08,4520.8,4520.7,24.649226]
[1757996991776,1e-08,4520.8,4520.7,25.084126]
[1757996995678,1e-08,4520.8,4520.7,25.572926]
[1757996998996,1e-08,4520.8,4520.7,25.683326]
[1757996999493,1e-08,4520.8,4520.7,25.987226]
[1757997001101,1e-08,4520.8,4520.7,22.260226]
[1757997001309,1e-08,4520.8,4520.7,25.985226]
[1757997001981,1e-08,4520.8,4520.7,22.260226]
[1757997002186,1e-08,4520.8,4520.7,25.984226]
[1757997002807,1e-08,4520.9,4520.8,6.00399787]
[1757997003098,1e-08,4520.9,4520.8,13.2545497]
[1757997003299,1e-08,4520.9,4520.8,13.5584497]
[1757997003498,1e-08,4520.9,4520.8,28.0584497]
[1757997004076,1e-08,4520.9,4520.8,28.1470899]
[1757997005999,1e-08,4520.9,4520.8,28.59750446]
[1757997006804,1e-08,4521.9,4521.4,2.21170433]
[1757997007099,1e-08,4521.9,4521.8,0.792]
[1757997007313,1e-08,4521.9,4521.8,10.03140869]
[1757997007713,1e-08,4521.9,4521.8,24.96400869]
[1757997008317,1e-08,4521.9,4521.8,25.45280869]
[1757997008470,1e-08,4521.9,4521.8,27.59196052]
[1757997008665,1e-08,4521.9,4521.8,27.68057657]
[1757997011139,0.00200001,4521.9,4521.8,27.68057657]
[1757997013094,0.00200001,4521.9,4521.8,29.46430374]
[1757997015341,0.02,4522.9,4522.8,2.21101972]
[1757997015521,1e-08,4522.9,4522.8,8.07523095]
[1757997015720,1e-08,4522.9,4522.8,8.99663095]
[1757997015946,1e-08,4522.9,4522.8,9.30053095]
[1757997016170,1e-08,4522.9,4522.8,24.16603095]
[1757997016859,1e-08,4522.9,4522.8,24.27643095]
[1757997017154,1e-08,4522.9,4522.8,23.05113095]
[1757997019954,1e-08,4522.9,4522.8,23.78763095]
[1757997020154,1e-08,4522.9,4522.8,24.24413095]
[1757997021029,1e-08,4522.9,4522.8,24.25083095]
[1757997023055,1e-08,4522.9,4522.8,23.79433095]
[1757997023253,1e-08,4522.9,4522.8,19.32913095]
[1757997023557,1e-08,4522.9,4522.8,23.04913095]
[1757997024055,1e-08,4522.9,4522.8,19.32913095]
[1757997024571,0.36550001,4522.9,4522.8,22.60691972]
[1757997026472,0.36550001,4522.9,4522.8,8.10591972]
[1757997027865,0.36550001,4522.9,4522.8,8.10691972]
[1757997028032,0.36750001,4522.9,4522.8,8.10691972]
[1757997029462,0.36750001,4522.9,4522.8,4.38791972]
[1757997029658,0.36750001,4522.9,4522.8,8.10691972]
[1757997030048,0.36750001,4522.9,4522.8,7.74141972]
[1757997030361,0.00200001,4522.9,4522.8,7.74141972]
[1757997030564,0.00200001,4522.9,4522.8,22.24141972]
[1757997031236,0.00200001,4522.9,4522.8,18.88791972]
[1757997031646,0.00200001,4522.9,4522.8,22.60691972]
[1757997033068,0.00200001,4522.9,4522.8,4.38791972]
[1757997033277,0.00200001,4522.9,4522.8,8.10691972]
[1757997033434,0.00200001,4522.9,4522.8,7.74141972]
[1757997034872,0.00200001,4522.9,4522.8,8.18071972]
[1757997035235,0.00200001,4522.9,4522.8,8.54621972]
[1757997035670,0.00200001,4522.9,4522.8,23.04621972]
[1757997035860,0.00200001,4522.9,4522.8,23.81281972]
[1757997037339,0.00200001,4522.9,4522.8,25.95197155]
[1757997038667,0.00200001,4522.9,4522.8,11.45197155]
[1757997039274,0.00200001,4522.9,4522.8,25.95197155]
[1757997039575,0.00200001,4522.9,4522.8,24.74507155]
[1757997042759,0.00200001,4522.9,4522.8,10.24507155]
[1757997043302,0.00200001,4522.9,4522.8,24.74507155]
[1757997044505,0.00200001,4522.9,4522.8,4.38791972]
[1757997044665,0.00200001,4522.9,4522.8,8.10491972]
[1757997044865,0.00200001,4522.9,4522.8,7.73941972]
[1757997046875,0.00200001,4522.9,4522.8,4.02241972]
[1757997047083,0.36750001,4522.9,4522.8,7.73941972]
[1757997047401,0.36750001,4522.9,4522.8,5.5274]
[1757997048417,0.36750001,4522.9,4522.8,7.73841972]
[1757997049868,0.00200001,4522.9,4522.8,7.73841972]
[1757997051426,0.00200001,4522.9,4522.8,1.8114]
[1757997051719,0.36750001,4522.9,4522.8,5.5274]
[1757997052088,0.36750001,4522.9,4522.8,1.8114]
[1757997052285,0.36750001,4522.9,4522.8,5.5274]
[1757997057042,0.36750001,4522.9,4522.8,3.8274]
[1757997057499,0.00200001,4522.9,4522.8,0.1114]
[1757997057708,0.00200001,4522.9,4522.8,3.8264]
[1757997058022,0.00200001,4522.9,4522.8,6.03741972]
[1757997058211,0.00200001,4522.9,4522.8,6.81391972]
[1757997058644,0.00200001,4522.9,4522.8,7.25971972]
[1757997058859,0.00200001,4522.9,4522.8,6.95431972]
[1757997059224,0.00200001,4522.9,4522.8,2.32241972]
[1757997059560,0.00200001,4522.9,4522.8,3.8264]
[1757997061146,0.00200001,4522.9,4522.8,0.1114]
[1757997061329,0.00200001,4522.9,4522.8,3.8264]
[1757997061958,0.00200001,4522.9,4522.8,6.03741972]
[1757997062631,0.00200001,4522.9,4522.8,3.8264]
[1757997062867,0.00200001,4522.9,4522.8,6.03741972]
[1757997063240,0.00200001,4522.9,4522.8,3.8264]
[1757997064260,0.00200001,4522.9,4522.8,3.716]
[1757997065932,0.00200001,4522.9,4522.8,0.001]
[1757997065933,0.36750001,4522.9,4522.8,0.001]
[1757997066893,2.57847084,4522.9,4522.8,0.001]
[1757997067909,5.78478974,4522.9,4522.8,0.001]
[1757997068057,5.99110705,4522.9,4522.8,0.001]
[1757997068258,5.78478815,4522.9,4522.8,0.001]
[1757997072895,9.49878815,4522.9,4522.8,0.001]
[1757997073695,10.29078815,4522.9,4522.8,0.001]
[1757997076064,11.09465769,4522.9,4522.8,0.001]
[1757997076281,11.56575769,4522.9,4522.8,0.001]
[1757997079587,11.91215343,4522.9,4522.8,0.001]
[1757997081776,14.24315343,4522.9,4522.8,0.001]
[1757997083607,15.09037761,4522.9,4522.8,0.001]
[1757997083985,14.83560053,4522.9,4522.8,0.001]
[1757997085496,14.83460053,4522.9,4522.8,0.001]
[1757997085697,13.52983512,4522.9,4522.8,0.001]
[1757997087284,7.48583512,4522.9,4522.8,0.001]
[1757997087578,10.40583512,4522.9,4522.8,1.2095]
[1757997087783,11.19783512,4522.9,4522.8,1.2095]
[1757997088285,6.69383512,4522.9,4522.8,1.2095]
[1757997088485,9.46077744,4522.9,4522.8,1.2095]
[1757997088781,10.72673512,4522.9,4522.8,1.2095]
[1757997089377,7.01473512,4522.9,4522.8,1.2095]
[1757997089710,10.25277744,4522.9,4522.8,1.2095]
[1757997089889,10.72673512,4522.9,4522.8,1.2095]
[1757997092208,10.72673512,4522.9,4522.8,0.001]
[1757997092579,7.01473512,4522.9,4522.8,0.001]
[1757997092779,11.17863512,4522.9,4522.8,0.001]
[1757997093884,11.17863512,4522.9,4522.8,0.8945]
[1757997094091,11.17863512,4522.9,4522.8,0.001]
[1757997094407,11.17867742,4522.9,4522.8,0.001]
[1757997094609,11.17867742,4522.9,4522.8,0.8945]
[1757997094817,11.17867742,4522.9,4522.8,1.2095]
[1757997095811,7.46667742,4522.9,4522.8,1.2095]
[1757997096016,10.72677742,4522.9,4522.8,1.2095]
[1757997096234,11.31922452,4522.9,4522.8,1.2095]
[1757997096726,10.72677742,4522.9,4522.8,1.2095]
[1757997099124,11.31922452,4522.9,4522.8,1.2095]
[1757997099738,11.31822452,4522.9,4522.8,1.2095]
[1757997100240,11.11190721,4522.9,4522.8,1.2095]
[1757997100409,11.31816484,4522.9,4522.8,1.2095]
[1757997101623,7.60716484,4522.9,4522.8,1.2095]
[1757997101829,11.31816484,4522.9,4522.8,0.8945]
[1757997102945,10.72571774,4522.9,4522.8,0.8945]
[1757997103122,11.31996328,4522.9,4522.8,0.8945]
[1757997103323,10.72571774,4522.9,4522.8,0.8945]
[1757997103752,10.72571774,4522.9,4522.8,0.4529]
[1757997103924,10.72571774,4522.9,4522.8,0.001]
[1757997104860,7.01471774,4522.9,4522.8,0.001]
[1757997105045,10.72571774,4522.9,4522.8,0.8945]
[1757997105665,11.39069904,4522.9,4522.8,0.8945]
[1757997106035,7.67969904,4522.9,4522.8,0.8945]
[1757997106222,10.51846011,4522.9,4522.8,0.8945]
[1757997106540,10.72489554,4522.9,4522.8,0.8945]
[1757997107395,7.72489554,4522.9,4522.8,1.2095]
[1757997107649,10.72489554,4522.9,4522.8,1.2095]
[1757997110523,0.20843543,4522.9,4522.8,1.2095]
[1757997110860,0.002,4523.4,4522.8,3.42050143]
[1757997111180,0.002,4523.4,4522.9,0.9527097]
[1757997111355,0.002,4523.4,4523.3,2.21077531]
[1757997111526,0.002,4523.4,4523.3,0.2867]
[1757997111722,0.002,4523.4,4523.3,2.49747531]
[1757997112045,0.002,4523.4,4523.3,1.2173]
[1757997112771,0.002,4523.4,4523.3,3.42807531]
[1757997112922,0.002,4523.4,4523.3,3.99197461]
[1757997113123,0.002,4523.4,4523.3,4.12448236]
[1757997113349,0.002,4523.4,4523.3,4.10237461]
[1757997114946,0.002,4523.4,4523.3,4.54050158]
[1757997116290,0.002,4523.4,4523.3,4.43010158]
[1757997116591,0.002,4523.4,4523.3,4.54050158]
[1757997117858,0.002,4523.4,4523.3,22.74850158]
[1757997121547,0.002,4523.4,4523.3,22.83710193]
[1757997124254,0.002,4523.4,4523.3,8.33710193]
[1757997124873,0.002,4523.4,4523.3,22.83710193]
[1757997130374,0.002,4523.4,4523.3,22.83510193]
[1757997130575,0.002,4523.4,4523.3,22.74650158]
[1757997131123,0.002,4523.4,4523.3,18.58210158]
[1757997131413,0.2062,4523.4,4523.3,7.50140158]
[1757997131576,0.002,4523.4,4523.3,7.50140158]
[1757997132707,0.002,4523.4,4523.3,7.02920158]
[1757997133906,0.002,4523.4,4523.3,7.02820158]
[1757997134104,0.2062,4523.4,4523.3,3.32320158]
[1757997134308,0.2062,4523.4,4523.3,7.02820158]
[1757997134917,0.002,4523.4,4523.3,7.49060158]
[1757997135681,0.002,4523.4,4523.3,8.23820158]
[1757997140610,0.002,4523.4,4523.3,4.07210158]
[1757997140919,0.002,4523.4,4523.3,8.22350158]
[1757997141385,0.002,4523.4,4523.3,22.72350158]
[1757997144521,0.002,4523.4,4523.3,8.22350158]
[1757997144928,0.002,4523.4,4523.3,22.72350158]
[1757997147312,0.002,4523.4,4523.3,22.91390158]
[1757997158341,0.002,4523.4,4523.3,4.26250158]
[1757997158548,0.002,4523.4,4523.3,7.96550158]
[1757997158742,0.002,4523.4,4523.3,8.41190158]
[1757997159522,0.002,4523.4,4523.3,10.11190158]
[1757997159747,0.002,4523.4,4523.3,9.37900158]
[1757997160057,0.2162,4523.4,4523.3,8.91660158]
[1757997160264,0.2162,4523.4,4523.3,9.36820158]
[1757997160558,0.002,4523.4,4523.3,9.36820158]
[1757997160922,0.2184,4523.4,4523.3,5.21360158]
[1757997161123,0.2184,4523.4,4523.3,8.91560158]
[1757997161324,0.2184,4523.4,4523.3,9.36720158]
[1757997161645,0.002,4523.4,4523.3,9.17680158]
[1757997162360,0.002,4523.4,4523.3,23.67680158]
[1757997162773,0.5839,4523.4,4523.3,22.66130228]
[1757997163060,1.0182,4523.4,4523.3,1.8104]
[1757997163283,1.0182,4523.4,4523.3,3.702]
[1757997165439,1.0182,4523.4,4523.2,3.702]
[1757997165665,0.7998,4523.3,4523.2,3.702]
[1757997165868,1.0184,4523.3,4523.2,3.702]
[1757997174042,2.21082419,4523.2,4523.1,0.001]
[1757997174679,3.22702419,4523.2,4523.1,0.001]
[1757997174834,6.22702419,4523.2,4523.1,0.001]
[1757997177394,7.01902419,4523.2,4523.1,0.001]
[1757997177604,10.72002419,4523.2,4523.1,0.001]
[1757997184101,10.92541223,4523.2,4523.1,0.001]
[1757997184810,11.13076171,4523.2,4523.1,0.001]
[1757997184977,11.72692952,4523.2,4523.1,0.001]
[1757997186013,11.9817066,4523.2,4523.1,0.001]
[1757997186339,11.72692952,4523.2,4523.1,0.001]
[1757997187201,24.51551552,4523.2,4523.1,0.001]
[1757997187409,3.00301972,4522.8,4522.7,1e-08]
[1757997187576,12.04835318,4522.8,4522.7,1e-08]
[1757997187776,13.53752505,4522.8,4522.7,1e-08]
[1757997188193,13.62611591,4522.8,4522.7,1e-08]
[1757997188905,24.00098299,4522.8,4522.7,1e-08]
[1757997189794,26.33198299,4522.8,4522.7,1e-08]
[1757997189986,26.67883263,4522.8,4522.7,1e-08]
[1757997190820,28.34140197,4522.8,4522.7,1e-08]
[1757997191025,28.54289299,4522.8,4522.7,1e-08]
[1757997191336,28.19604335,4522.8,4522.7,1e-08]
[1757997191704,33.57696835,4522.8,4522.7,1e-08]
[1757997192027,31.74253335,4522.8,4522.7,1e-08]
[1757997192621,28.90799705,4522.8,4522.7,1e-08]
[1757997192818,35.67567105,4522.8,4522.7,1e-08]
[1757997193154,35.52386727,4522.8,4522.7,1e-08]
[1757997193305,34.73141991,4522.8,4522.7,1e-08]
[1757997193704,5.33411749,4522.6,4521.8,1e-08]
[1757997193929,3.00345978,4521.9,4521.8,1e-08]
[1757997194140,25.3369518,4521.9,4521.8,1e-08]
[1757997194443,24.20142067,4521.9,4521.8,1e-08]
[1757997194613,25.09842814,4521.9,4521.8,1e-08]
[1757997194942,41.21135907,4521.9,4521.8,1e-08]
[1757997195236,33.88170714,4521.9,4521.8,1e-08]
[1757997195537,33.60296414,4521.9,4521.8,1e-08]
[1757997196056,3.123,4521.7,4521.1,1e-08]
[1757997196348,0.792,4520.2,4520.1,1e-08]
[1757997196499,12.1120774,4520.2,4520.1,1e-08]
[1757997196703,12.58504927,4520.2,4520.1,1e-08]
[1757997196910,31.10865339,4520.2,4520.1,1e-08]
[1757997197115,23.03851553,4520.2,4520.1,1e-08]
[1757997197549,23.03851553,4520.2,4519.7,1e-08]
[1757997197550,3.00448727,4519.8,4519.7,1e-08]
[1757997197747,10.11607318,4519.8,4519.7,1e-08]
[1757997197946,11.60594505,4519.8,4519.7,1e-08]
[1757997198160,11.24974505,4519.8,4519.7,1e-08]
[1757997198328,10.67968388,4519.8,4519.7,1e-08]
[1757997198521,6.68248388,4519.8,4519.7,1e-08]
[1757997198851,6.32209464,4519.8,4519.7,1.22770001]
[1757997199053,9.8190699,4519.8,4519.7,1.22770001]
[1757997199428,6.1170699,4519.8,4519.7,1.22770001]
[1757997199630,11.5200699,4519.8,4519.7,1.22770001]
[1757997199835,7.8180699,4519.8,4519.7,1.22770001]
[1757997200036,1.701,4520.0,4519.7,1.22770001]
[1757997200233,3.702,4519.9,4519.8,0.9233]
[1757997200439,6.702,4519.9,4519.8,0.9233]
[1757997200638,6.702,4519.9,4519.8,1.2167]
[1757997201418,8.91443832,4519.9,4519.8,1.2167]
[1757997201820,6.702,4519.9,4519.8,1.2167]
[1757997202035,8.91443832,4519.9,4519.8,1.2167]
[1757997202849,6.702,4519.9,4519.8,1.2167]
[1757997203367,8.91443832,4519.9,4519.8,1.2167]
[1757997204147,9.70643832,4519.9,4519.8,1.2167]
[1757997204966,3.792,4519.9,4519.8,1.2167]
[1757997205196,6.702,4519.9,4519.8,1.2167]
[1757997205597,3.0,4519.9,4519.8,1.2167]
[1757997205783,6.702,4519.9,4519.8,1.2167]
[1757997205960,8.91443832,4519.9,4519.8,1.2167]
[1757997207283,9.11900543,4519.9,4519.8,1.2167]
[1757997208582,6.90656711,4519.9,4519.8,1.2167]
[1757997209704,3.20456711,4519.9,4519.8,1.2167]
[1757997209868,3.0,4519.9,4519.8,1.2167]
[1757997211065,5.21243832,4519.9,4519.8,1.2167]
[1757997211683,3.0,4519.9,4519.8,0.7465]
[1757997211861,3.0,4519.9,4519.8,1.2167]
[1757997212372,5.21243832,4519.9,4519.8,0.7465]
[1757997212576,5.41728759,4519.9,4519.8,0.7465]
[1757997213117,5.41928759,4519.9,4519.8,0.7465]
[1757997213472,5.4184026,4519.9,4519.8,1.2167]
[1757997214184,5.89087378,4519.9,4519.8,1.2167]
[1757997215709,5.89087378,4519.9,4519.8,1.326331]
[1757997217986,3.67843546,4519.9,4519.8,1.326331]
[1757997218192,7.38043546,4519.9,4519.8,1.326331]
[1757997218600,3.67843546,4519.9,4519.8,1.326331]
[1757997218920,7.01836428,4519.9,4519.8,1.326331]
[1757997219914,3.31636428,4519.9,4519.8,1.326331]
[1757997222139,3.79059727,4519.9,4519.8,1.326331]
[1757997222341,3.31636428,4519.9,4519.8,1.326331]
[1757997223130,3.79076986,4519.9,4519.8,1.326331]
[1757997223437,3.31636428,4519.9,4519.8,1.326331]
[1757997224227,5.5288026,4519.9,4519.8,0.856131]
[1757997225139,9.2308026,4519.9,4519.8,0.562731]
[1757997225345,9.70520756,4519.9,4519.8,0.109631]
[1757997226145,3.79076924,4519.9,4519.8,1.326331]
[1757997226443,7.01836428,4519.9,4519.8,1.326331]
[1757997226618,7.49276924,4519.9,4519.8,1.326331]
[1757997227763,9.70520756,4519.9,4519.8,1.326331]
[1757997228062,7.49276924,4519.9,4519.8,1.326331]
[1757997229465,9.70520756,4519.9,4519.8,1.326331]
[1757997229777,7.49276924,4519.9,4519.8,1.326331]
[1757997230281,9.70520756,4519.9,4519.8,1.326331]
[1757997230734,7.49276924,4519.9,4519.8,1.326331]
[1757997230937,9.70520756,4519.9,4519.8,1.326331]
[1757997231135,9.70520756,4519.9,4519.8,0.856131]
[1757997231537,7.49276924,4519.9,4519.8,0.856131]
[1757997232036,3.79076924,4519.9,4519.8,0.856131]
[1757997232237,3.31636428,4519.9,4519.8,0.856131]
[1757997232452,3.31636428,4519.9,4519.8,1.321631]
[1757997232650,3.79076924,4519.9,4519.8,1.321631]
[1757997233337,3.79076924,4519.9,4519.8,0.856131]
[1757997233338,3.31636428,4519.9,4519.8,0.856131]
[1757997235294,3.31636428,4519.9,4519.8,1.302131]
[1757997235295,3.00111501,4519.9,4519.8,1.302131]
[1757997235677,3.00111501,4519.9,4519.8,3.51461827]
[1757997236385,3.00111501,4519.9,4519.8,3.86192412]
[1757997236585,0.002,4519.9,4519.8,3.97232412]
[1757997238172,0.002,4519.9,4519.8,3.99444899]
[1757997240899,0.002,4519.9,4519.8,3.97232412]
[1757997241097,0.002,4519.9,4519.8,18.47232412]
[1757997241809,0.002,4519.9,4519.8,3.97232412]
[1757997242173,0.002,4519.9,4519.8,3.99444899]
[1757997243799,0.002,4519.9,4519.8,3.97232412]
[1757997244524,0.002,4519.9,4519.8,7.67332412]
[1757997245829,0.002,4519.9,4519.8,22.17332412]
[1757997248505,0.002,4519.9,4519.8,22.17432412]
[1757997248833,0.002,4519.9,4519.8,7.67432412]
[1757997249213,0.002,4519.9,4519.8,22.17432412]
[1757997264845,0.002,4519.9,4519.8,18.47332412]
[1757997265053,0.6527,4519.9,4519.8,6.47982412]
[1757997265465,1.0182,4519.9,4519.8,2.78082412]
[1757997265760,1.0182,4519.9,4519.8,6.47982412]